bitfinex/quotes_SOLUSD_20250621
["timestamp","ask_amount","ask_price","bid_price","bid_amount"]
[1750532036166,5.32976499,138.64,138.61,18.03492711]
[1750532036476,0.73,138.65,138.62,9.11358819]
[1750532036676,5.32821412,138.64,138.62,9.11358819]
[1750532036858,26.0,138.64,138.63,7.21344586]
[1750532037058,31.32773987,138.64,138.63,7.21344586]
[1750532038781,5.32773987,138.64,138.63,7.21344586]
[1750532038966,31.32773987,138.64,138.63,7.21344586]
[1750532039280,31.32773987,138.64,138.63,16.32703405]
[1750532039853,31.32773987,138.64,138.63,7.21344586]
[1750532040074,31.32773987,138.64,138.63,16.32703405]
[1750532040593,31.32773987,138.64,138.63,7.21344586]
[1750532040594,32.05773987,138.64,138.63,7.21344586]
[1750532040801,31.32773987,138.64,138.63,7.21344586]
[1750532041661,31.32779332,138.64,138.63,7.21344586]
[1750532041966,35.84358819,138.67,138.63,34.3606487]
[1750532042172,5.3295112,138.66,138.63,34.3606487]
[1750532042349,35.84358819,138.67,138.63,34.3606487]
[1750532042554,5.33001558,138.66,138.63,34.3606487]
[1750532042778,35.84358819,138.67,138.63,34.3606487]
[1750532042979,5.3291355,138.66,138.64,9.11358819]
[1750532043170,26.73,138.67,138.64,9.11358819]
[1750532043465,5.32890866,138.66,138.64,9.11358819]
[1750532043786,26.73,138.67,138.64,9.11358819]
[1750532043962,5.32847393,138.66,138.64,9.11358819]
[1750532044159,26.73,138.67,138.64,9.11358819]
[1750532044364,5.32828982,138.66,138.64,9.11358819]
[1750532044592,26.73,138.67,138.64,9.11358819]
[1750532044886,5.32718626,138.66,138.64,9.11358819]
[1750532045085,0.73,138.66,138.64,9.11358819]
[1750532045608,0.73,138.66,138.63,9.11358819]
[1750532047082,35.84358819,138.67,138.64,7.21292556]
[1750532047283,5.33073871,138.66,138.64,25.24523946]
[1750532047472,35.11358819,138.67,138.64,25.24523946]
[1750532047696,6.06089322,138.66,138.64,25.24523946]
[1750532047860,0.73,138.66,138.64,25.24523946]
[1750532049491,35.84358819,138.67,138.64,25.24523946]
[1750532049691,5.33133881,138.66,138.64,25.24523946]
[1750532049889,35.84358819,138.67,138.64,25.24523946]
[1750532050094,5.33106973,138.66,138.64,25.24523946]
[1750532050278,26.73,138.67,138.64,25.24523946]
[1750532050585,5.33090754,138.66,138.64,25.24523946]
[1750532050788,35.84358819,138.67,138.64,25.24523946]
[1750532051087,5.33090588,138.66,138.64,25.24523946]
[1750532051288,35.84358819,138.67,138.64,25.24523946]
[1750532051471,5.33157204,138.66,138.64,25.24523946]
[1750532051672,35.84358819,138.67,138.64,25.24523946]
[1750532051996,5.33162305,138.66,138.64,25.24523946]
[1750532052177,35.84358819,138.67,138.64,25.24523946]
[1750532052380,5.33165911,138.66,138.64,25.24523946]
[1750532052571,26.73,138.67,138.64,25.24523946]
[1750532052770,26.73,138.67,138.64,34.35882765]
[1750532053890,26.73,138.67,138.64,25.24523946]
[1750532054197,26.73,138.67,138.64,34.35882765]
[1750532054398,5.33162471,138.66,138.64,25.24523946]
[1750532054572,26.73,138.67,138.64,34.35882765]
[1750532054896,26.73,138.67,138.64,18.0323139]
[1750532055595,0.73,138.67,138.64,27.14590209]
[1750532056280,0.73,138.67,138.64,34.35882765]
[1750532056673,9.84358819,138.67,138.64,34.35882765]
[1750532057172,9.84358819,138.67,138.64,25.24523946]
[1750532057775,148.0,138.68,138.64,34.35882765]
[1750532057977,5.33184606,138.67,138.64,34.35882765]
[1750532058183,157.11358819,138.68,138.64,34.35882765]
[1750532058473,5.33195079,138.67,138.64,34.35882765]
[1750532058674,157.81358819,138.68,138.64,34.35882765]
[1750532058882,5.33181606,138.67,138.64,34.35882765]
[1750532059090,0.7,138.67,138.64,34.35882765]
[1750532062502,157.81358819,138.68,138.64,34.35882765]
[1750532062796,5.33182988,138.67,138.64,34.35882765]
[1750532063003,157.81358819,138.68,138.64,25.24523946]
[1750532063188,5.33150064,138.67,138.64,34.35882765]
[1750532063389,157.81358819,138.68,138.64,34.35882765]
[1750532063598,5.33141572,138.67,138.64,34.35882765]
[1750532063793,157.81358819,138.68,138.64,34.35882765]
[1750532063992,148.0,138.68,138.65,9.11358819]
[1750532064588,148.0,138.68,138.66,7.21188518]
[1750532064778,148.0,138.68,138.66,16.32547337]
[1750532065797,148.0,138.68,138.67,9.11358819]
[1750532066604,148.0,138.68,138.66,7.21188518]
[1750532066605,148.7,138.68,138.66,7.21188518]
[1750532067207,157.11358819,138.68,138.66,7.21188518]
[1750532067395,0.7,138.66,138.65,7.2122206]
[1750532067793,148.0,138.65,138.63,7.21344586]
[1750532069183,148.0,138.65,138.63,16.32703405]
[1750532070695,148.7,138.65,138.63,16.32703405]
[1750532071205,148.7,138.65,138.6,43.9021741]
[1750532071414,148.7,138.65,138.63,9.11358819]
[1750532072293,148.0,138.65,138.63,9.11358819]
[1750532072614,148.0,138.65,138.64,7.21292556]
[1750532073400,157.81358819,138.65,138.64,7.21292556]
[1750532073599,163.14889387,138.65,138.64,7.21292556]
[1750532074310,163.14939667,138.65,138.62,25.24846132]
[1750532074518,9.81358819,138.63,138.62,25.24846132]
[1750532074717,26.7,138.63,138.62,7.21396623]
[1750532075088,5.337043,138.64,138.62,16.32755442]
[1750532075311,148.0,138.65,138.63,9.11358819]
[1750532075512,166.04121575,138.7,138.64,27.76323705]
[1750532075813,6.03908852,138.69,138.66,9.11358819]
[1750532075989,0.7,138.71,138.68,9.11358819]
[1750532076192,32.03996301,138.7,138.67,9.11358819]
[1750532076390,6.03996301,138.69,138.68,7.21084511]
[1750532077321,15.1535512,138.69,138.68,7.21084511]
[1750532078321,6.03996301,138.69,138.66,27.14321251]
[1750532078498,0.7,138.69,138.67,7.21136511]
[1750532079706,0.7,138.69,138.67,16.3249533]
[1750532080223,26.7,138.7,138.67,16.3249533]
[1750532080595,5.34456948,138.69,138.67,7.21136511]
[1750532080794,0.7,138.69,138.67,7.21136511]
[1750532081708,0.7,138.69,138.67,16.3249533]
[1750532081906,0.7,138.69,138.67,7.21136511]
[1750532082121,0.7,138.69,138.67,16.3249533]
[1750532082933,0.7,138.69,138.67,7.21136511]
[1750532083108,174.0,138.7,138.67,34.35336607]
[1750532083316,174.0,138.7,138.68,9.11358819]
[1750532084631,174.0,138.7,138.69,7.21032518]
[1750532085263,179.34394699,138.7,138.69,7.21032518]
[1750532085908,174.0,138.7,138.69,7.21032518]
[1750532087029,148.0,138.7,138.69,7.21032518]
[1750532087237,148.0,138.7,138.69,16.32391337]
[1750532087620,153.34285932,138.7,138.69,7.21032518]
[1750532087821,148.0,138.7,138.69,7.21032518]
[1750532088026,20.21449385,138.74,138.7,18.64964886]
[1750532088213,1.5083,138.78,138.73,9.11358819]
[1750532088214,2.2583,138.78,138.73,9.11358819]
[1750532088542,0.75,138.79,138.76,9.11358819]
[1750532088762,5.34183544,138.78,138.76,6.61358819]
[1750532089041,5.34183544,138.78,138.7,24.77304886]
[1750532089042,0.75,138.75,138.62,7.21396623]
[1750532089346,0.75,138.75,138.65,3.61576053]
[1750532089347,9.86358819,138.68,138.65,3.61576053]
[1750532089516,36.62188819,138.69,138.62,25.24888182]
[1750532089710,6.0897168,138.68,138.64,9.11358819]
[1750532089944,0.75,138.68,138.64,9.11358819]
[1750532090248,9.11358819,138.7,138.64,16.01358819]
[1750532090408,6.09060109,138.69,138.65,9.11358819]
[1750532090611,35.86358819,138.69,138.64,16.01358819]
[1750532090812,35.86358819,138.69,138.65,7.21240533]
[1750532093116,26.0,138.7,138.65,34.35700686]
[1750532093323,0.75,138.69,138.65,25.24341867]
[1750532094429,9.86358819,138.69,138.65,25.24341867]
[1750532095424,9.86358819,138.66,138.65,7.21240533]
[1750532097540,9.11358819,138.66,138.63,7.21344586]
[1750532097745,7.20985091,138.7,138.63,14.11344586]
[1750532097746,9.11358819,138.64,138.63,14.11344586]
[1750532098041,9.86358819,138.64,138.63,14.11344586]
[1750532098263,43.94328819,138.64,138.54,10.0]
[1750532098562,26.75,138.51,138.5,21.66769]
[1750532098721,26.0,138.47,138.39,9.11358819]
[1750532098918,9.11358819,138.45,138.39,9.11358819]
[1750532099150,9.11358819,138.44,138.38,39.36809497]
[1750532099351,0.75,138.46,138.39,25.29084471]
[1750532099519,9.11358819,138.44,138.39,34.4044329]
[1750532099717,0.75,138.46,138.39,25.29084471]
[1750532099718,9.11358819,138.43,138.39,25.29084471]
[1750532100344,9.11358819,138.42,138.39,7.22595563]
[1750532100852,15.23604199,138.42,138.39,7.22595563]
[1750532101218,15.23604199,138.42,138.39,25.29084471]
[1750532102320,28.86655532,138.46,138.39,76.65666486]
[1750532102642,15.23604199,138.45,138.41,15.23604199]
[1750532103253,15.23604199,138.45,138.4,40.78569085]
[1750532103553,15.23604199,138.45,138.41,15.23604199]
[1750532103851,15.23604199,138.45,138.42,25.28536337]
[1750532104428,15.23604199,138.44,138.42,25.28536337]
[1750532104721,15.23604199,138.44,138.39,36.12977816]
[1750532104722,26.75,138.4,138.39,7.22595563]
[1750532104927,0.75,138.39,138.38,11.48097315]
[1750532105140,15.98604199,138.39,138.38,11.48097315]
[1750532105546,0.75,138.39,138.38,11.48097315]
[1750532105858,15.98604199,138.39,138.38,11.48097315]
[1750532106031,15.23604199,138.39,138.38,11.48097315]
[1750532106430,26.0,138.4,138.38,11.48097315]
[1750532106730,41.23604199,138.4,138.38,11.48097315]
[1750532107149,41.98604199,138.4,138.38,11.48097315]
[1750532108344,15.98604199,138.42,138.38,29.54716768]
[1750532108540,15.98604199,138.42,138.38,44.78320967]
[1750532109338,0.75,138.42,138.38,44.78320967]
[1750532109547,15.98604199,138.42,138.38,44.78320967]
[1750532111657,15.98604199,138.42,138.38,29.54716768]
[1750532111864,11.28310012,138.44,138.39,15.23604199]
[1750532112043,11.28310012,138.44,138.41,15.23604199]
[1750532112365,12.03310012,138.44,138.39,18.64964886]
[1750532112545,12.03310012,138.44,138.39,33.88569085]
[1750532112546,27.26914211,138.44,138.39,33.88569085]
[1750532112937,12.03310012,138.44,138.39,33.88569085]
[1750532113140,27.26914211,138.44,138.39,33.88569085]
[1750532113658,15.23604199,138.43,138.4,25.28901733]
[1750532113965,15.98604199,138.41,138.4,25.28901733]
[1750532114130,15.98604199,138.41,138.4,7.22543352]
[1750532114532,26.75,138.41,138.4,7.22543352]
[1750532114768,41.98604199,138.41,138.4,7.22543352]
[1750532115748,0.71,138.4,138.39,7.22595563]
[1750532115936,41.94604199,138.4,138.39,7.22595563]
[1750532116445,41.94604199,138.4,138.38,11.48095341]
[1750532116446,0.71,138.39,138.38,11.48095341]
[1750532116647,15.94604199,138.39,138.38,4.25450678]
[1750532117759,34.59569085,138.39,138.38,2.58790678]
[1750532117949,213.43569085,138.39,138.34,7.22844473]
[1750532118148,26.0,138.36,138.34,7.22844473]
[1750532118335,15.94604199,138.38,138.34,7.22844473]
[1750532118534,0.71,138.37,138.34,25.29986297]
[1750532118958,15.23604199,138.38,138.34,40.53590496]
[1750532119333,174.0,138.39,138.34,40.53590496]
[1750532119540,26.0,138.4,138.37,25.29450025]
[1750532119779,0.71,138.39,138.37,7.22700007]
[1750532119936,15.94604199,138.38,138.37,7.22700007]
[1750532120964,0.71,138.38,138.37,7.22700007]
[1750532121161,15.94604199,138.38,138.37,7.22700007]
[1750532121734,0.71,138.37,138.36,7.2275224]
[1750532121942,15.94604199,138.37,138.36,7.2275224]
[1750532125081,163.23604199,138.39,138.36,25.29632841]
[1750532125253,148.0,138.39,138.36,25.29632841]
[1750532125436,163.23604199,138.39,138.36,25.29632841]
[1750532125977,148.0,138.39,138.36,25.29632841]
[1750532126343,15.23604199,138.4,138.36,25.29632841]
[1750532126344,41.23604199,138.4,138.36,25.29632841]
[1750532126545,41.94604199,138.4,138.36,25.29632841]
[1750532126753,26.71,138.4,138.36,25.29632841]
[1750532127162,41.94604199,138.4,138.36,25.29632841]
[1750532127845,41.94604199,138.4,138.36,40.5323704]
[1750532128654,26.71,138.4,138.36,40.5323704]
[1750532128853,41.23604199,138.4,138.36,40.5323704]
[1750532129048,41.94604199,138.4,138.36,40.5323704]
[1750532129776,41.94604199,138.4,138.36,25.29632841]
[1750532130659,0.71,138.43,138.38,15.23604199]
[1750532130849,15.23604199,138.43,138.38,15.23604199]
[1750532131177,0.71,138.42,138.38,15.23604199]
[1750532131578,15.94604199,138.42,138.38,15.23604199]
[1750532132372,15.94604199,138.42,138.39,25.29084471]
[1750532133051,15.23604199,138.41,138.39,25.29084471]
[1750532133252,0.71,138.4,138.39,25.29084471]
[1750532134077,0.71,138.41,138.39,25.29084471]
[1750532134456,0.71,138.41,138.39,18.06488908]
[1750532135278,15.94604199,138.44,138.4,15.23604199]
[1750532135453,15.23604199,138.44,138.39,33.30093107]
[1750532135657,0.71,138.43,138.39,33.30093107]
[1750532136153,189.23604199,138.45,138.4,15.23604199]
[1750532136353,163.23604199,138.45,138.41,25.28719022]
[1750532136679,163.94604199,138.45,138.41,25.28719022]
[1750532137861,15.94604199,138.44,138.41,25.28719022]
[1750532138061,15.23604199,138.44,138.41,25.28719022]
[1750532138276,0.71,138.43,138.41,25.28719022]
[1750532138479,15.94604199,138.43,138.41,18.06227873]
[1750532139195,0.71,138.43,138.41,18.06227873]
[1750532139989,189.94604199,138.45,138.41,18.06227873]
[1750532140158,5.27430941,138.44,138.41,18.06227873]
[1750532140353,189.23604199,138.45,138.41,18.06227873]
[1750532140558,20.52430366,138.44,138.41,18.06227873]
[1750532140866,5.28826167,138.43,138.41,18.06227873]
[1750532141066,5.2894533,138.42,138.41,18.06227873]
[1750532142361,5.2894533,138.42,138.39,15.23604199]
[1750532142660,5.2894533,138.41,138.39,15.23604199]
[1750532142855,15.94604199,138.44,138.4,15.23604199]
[1750532143081,5.31881495,138.43,138.4,15.23604199]
[1750532143266,5.31881495,138.42,138.4,15.23604199]
[1750532143468,5.31881495,138.41,138.4,15.23604199]
[1750532143883,5.31881495,138.41,138.4,22.46147551]
[1750532144674,5.31881495,138.41,138.4,7.22543352]
[1750532145164,5.31881495,138.41,138.4,22.46147551]
[1750532145687,5.31881495,138.41,138.4,7.22543352]
[1750532147867,5.31881495,138.41,138.4,16.36561114]
[1750532148070,5.31881495,138.41,138.4,35.01526]
[1750532148383,0.7,138.44,138.4,34.42919495]
[1750532148586,5.34032642,138.43,138.41,16.26017762]
[1750532148896,5.34032642,138.42,138.41,16.26017762]
[1750532149290,5.34032642,138.42,138.41,7.12]
[1750532149497,6.04032642,138.42,138.41,14.34491149]
[1750532150189,41.18050404,138.42,138.41,7.12]
[1750532150402,0.7,138.41,138.37,7.22700007]
[1750532150574,0.7,138.41,138.36,6.96]
[1750532150575,9.84017762,138.38,138.36,14.18734017]
[1750532150785,15.18050404,138.37,138.36,14.18734017]
[1750532150970,15.18050404,138.37,138.36,6.96]
[1750532151175,0.7,138.36,138.31,6.96]
[1750532151405,9.84017762,138.34,138.33,8.78473151]
[1750532151587,15.18050404,138.34,138.33,8.78473151]
[1750532152007,5.34032642,138.34,138.33,8.78473151]
[1750532152172,14.48050404,138.34,138.33,1.5556725]
[1750532152507,15.18050404,138.34,138.33,8.78476235]
[1750532152684,15.18050404,138.34,138.33,1.5556725]
[1750532152880,21.29504546,138.34,138.33,8.78476235]
[1750532154293,21.29504546,138.34,138.33,1.5556725]
[1750532154294,47.29504546,138.34,138.33,1.5556725]
[1750532156372,41.95471904,138.34,138.33,1.5556725]
[1750532157189,47.29504546,138.34,138.33,1.5556725]
[1750532157402,41.95471904,138.34,138.33,1.5556725]
[1750532157919,26.7,138.34,138.33,1.5556725]
[1750532158112,41.95471904,138.34,138.33,1.5556725]
[1750532159715,41.95471904,138.34,138.33,8.78476235]
[1750532160207,41.95471904,138.34,138.33,1.5556725]
[1750532160710,60.6043679,138.34,138.33,1.5556725]
[1750532161007,0.7,138.29,138.18,1.0]
[1750532161209,44.64964886,138.31,138.18,1.0]
[1750532161210,15.25471904,138.24,138.2,29.45060905]
[1750532161396,15.95471904,138.24,138.2,29.45060905]
[1750532161717,0.7,138.23,138.2,47.54033408]
[1750532161907,0.7,138.23,138.2,32.28561504]
[1750532162210,26.0,138.25,138.2,7.23589001]
[1750532162424,26.0,138.24,138.2,7.23589001]
[1750532162593,26.0,138.24,138.2,40.58033408]
[1750532162926,15.25471904,138.25,138.21,15.25471904]
[1750532163084,26.7,138.26,138.22,22.21471904]
[1750532163298,26.0,138.26,138.22,22.21471904]
[1750532163621,148.0,138.27,138.25,15.25471904]
[1750532163793,148.7,138.32,138.26,40.56934365]
[1750532163986,15.25471904,138.31,138.26,40.56934365]
[1750532164202,15.25471904,138.3,138.26,40.56934365]
[1750532164513,0.7,138.31,138.27,15.25471904]
[1750532164883,148.0,138.32,138.28,15.25471904]
[1750532165085,148.0,138.32,138.29,15.25471904]
[1750532165780,15.25471904,138.34,138.3,22.48537702]
[1750532166004,0.7,138.36,138.3,40.56202199]
[1750532166201,15.95471904,138.36,138.32,15.25471904]
[1750532166527,174.0,138.37,138.32,15.25471904]
[1750532166815,41.25471904,138.37,138.32,15.25471904]
[1750532167013,15.25471904,138.38,138.34,15.25471904]
[1750532167322,41.95471904,138.38,138.34,6.96]
[1750532167617,26.7,138.38,138.34,6.96]
[1750532167793,15.95471904,138.37,138.35,7.22804481]
[1750532167990,15.95471904,138.37,138.34,14.18840247]
[1750532168209,0.7,138.37,138.32,7.22960185]
[1750532168526,33.22662529,138.38,138.32,7.22960185]
[1750532168527,15.25471904,138.34,138.32,7.22960185]
[1750532168686,15.95471904,138.33,138.29,7.23118085]
[1750532168886,15.25471904,138.32,138.29,7.23118085]
[1750532169311,15.95471904,138.32,138.29,7.23118085]
[1750532170513,0.7,138.32,138.29,7.23118085]
[1750532170721,0.7,138.31,138.29,7.23118085]
[1750532171595,15.95471904,138.31,138.29,7.23118085]
[1750532172817,0.7,138.31,138.29,7.23118085]
[1750532173017,148.0,138.34,138.3,15.25471904]
[1750532173300,148.0,138.34,138.31,15.25471904]
[1750532173528,148.7,138.34,138.3,15.25471904]
[1750532173703,148.7,138.34,138.31,7.2301352]
[1750532174031,148.0,138.34,138.31,7.2301352]
[1750532174200,15.95471904,138.37,138.32,15.25471904]
[1750532174400,16.00471904,138.36,138.32,15.25471904]
[1750532174601,0.75,138.36,138.32,15.25471904]
[1750532174802,16.00471904,138.35,138.31,40.56019224]
[1750532175303,15.25471904,138.35,138.31,40.56019224]
[1750532175498,0.75,138.32,138.31,7.2301352]
[1750532175705,16.00471904,138.32,138.29,25.3091102]
[1750532176322,15.25471904,138.32,138.29,25.3091102]
[1750532176547,0.75,138.31,138.29,25.3091102]
[1750532177454,16.00471904,138.3,138.29,7.23118085]
[1750532178032,0.75,138.3,138.29,7.23118085]
[1750532178542,16.00471904,138.31,138.29,7.23118085]
[1750532179436,0.75,138.3,138.29,7.23118085]
[1750532180932,16.00471904,138.3,138.29,7.23118085]
[1750532181321,0.75,138.29,138.28,14.19155792]
[1750532181528,16.00471904,138.29,138.28,14.19155792]
[1750532183143,16.00471904,138.29,138.28,7.23155792]
[1750532183331,148.75,138.28,138.22,25.32083089]
[1750532183530,16.00471904,138.26,138.22,25.32083089]
[1750532183743,0.75,138.24,138.22,7.234843]
[1750532184043,164.00471904,138.23,138.21,7.2351553]
[1750532184246,16.00471904,138.22,138.2,6.96]
[1750532184415,16.00471904,138.21,138.2,6.96]
[1750532184741,174.0,138.23,138.2,6.96]
[1750532184742,15.25471904,138.22,138.2,6.96]
[1750532184950,189.25471904,138.23,138.2,6.96]
[1750532185134,0.75,138.22,138.2,6.96]
[1750532185951,16.00471904,138.22,138.2,6.96]
[1750532186115,0.75,138.22,138.2,6.96]
[1750532186316,148.0,138.23,138.2,6.96]
[1750532186539,148.0,138.23,138.21,7.23536647]
[1750532186721,148.0,138.23,138.21,22.49008551]
[1750532187052,26.0,138.25,138.21,25.32378264]
[1750532187252,15.25471904,138.26,138.22,15.25471904]
[1750532187422,15.25471904,138.26,138.21,25.32378264]
[1750532187619,15.25471904,138.25,138.21,40.57850168]
[1750532187922,0.75,138.24,138.21,25.32378264]
[1750532188142,16.00471904,138.24,138.21,25.32378264]
[1750532188342,16.00471904,138.24,138.21,7.23536647]
[1750532188545,15.25471904,138.25,138.21,7.23536647]
[1750532188842,15.25471904,138.26,138.22,15.25471904]
[1750532189046,16.00471904,138.23,138.2,14.19583126]
[1750532189252,16.00471904,138.23,138.18,1.0]
[1750532189253,44.64964886,138.19,138.18,1.0]
[1750532189417,0.75,138.17,138.1,0.1]
[1750532189614,26.0,138.13,138.1,0.1]
[1750532189821,16.00471904,138.11,138.1,0.1]
[1750532191157,0.75,138.11,138.1,0.1]
[1750532191322,0.75,138.11,138.05,0.5556725]
[1750532191323,0.75,138.09,138.05,0.5556725]
[1750532191525,16.00471904,138.06,138.05,0.5556725]
[1750532192354,41.0937679,138.06,137.99,6.98]
[1750532192646,26.75,137.95,137.94,4.25450678]
[1750532192818,60.6543679,137.95,137.94,4.25450678]
[1750532193019,26.0,137.92,137.87,6.98]
[1750532193255,16.00471904,137.88,137.87,6.98]
[1750532193427,0.75,137.95,137.87,14.23320954]
[1750532193614,15.25471904,137.91,137.87,14.23320954]
[1750532193819,26.0,137.93,137.87,31.8662334]
[1750532194024,0.75,137.95,137.87,31.8662334]
[1750532194257,0.75,137.97,137.87,31.8662334]
[1750532194427,0.75,137.97,137.92,15.25471904]
[1750532194618,15.25471904,137.96,137.94,7.24952878]
[1750532194820,23.92724852,137.96,137.94,7.24952878]
[1750532195033,18.64964886,138.01,137.94,25.37335073]
[1750532195238,18.64964886,138.01,137.87,36.26604772]
[1750532195239,23.92724852,137.96,137.91,6.98]
[1750532195460,24.67724852,137.92,137.9,7.25163161]
[1750532195629,19.39964886,137.91,137.85,7.25426187]
[1750532195827,0.75,137.91,137.85,7.25426187]
[1750532196033,23.92724852,137.89,137.85,25.38991656]
[1750532196233,44.64964886,137.92,137.85,25.38991656]
[1750532196234,23.92724852,137.88,137.85,7.25426187]
[1750532196438,23.92724852,137.87,137.85,7.25426187]
[1750532196740,24.67724852,137.86,137.84,7.25478816]
[1750532197118,0.75,137.86,137.84,7.25478816]
[1750532197341,0.75,137.86,137.79,7.25742071]
[1750532197550,23.92724852,137.83,137.79,25.40097249]
[1750532197749,0.75,137.86,137.79,25.40097249]
[1750532197922,23.92724852,137.83,137.79,25.40097249]
[1750532198122,0.75,137.86,137.79,25.40097249]
[1750532198323,18.64964886,137.85,137.79,25.40097249]
[1750532198525,23.92724852,137.82,137.79,25.40097249]
[1750532198741,23.92724852,137.81,137.79,7.25742071]
[1750532199154,0.75,137.8,137.79,7.25742071]
[1750532199486,26.75,137.78,137.77,1.5556725]
[1750532199761,69.32689738,137.78,137.77,1.5556725]
[1750532200127,69.32689738,137.78,137.72,4.25450678]
[1750532200128,101.08689738,137.78,137.72,11.51520486]
[1750532200330,0.75,137.73,137.72,11.51561627]
[1750532200558,50.67724852,137.73,137.72,4.25450678]
[1750532200731,50.67724852,137.73,137.72,11.51561627]
[1750532200931,50.67724852,137.73,137.72,4.25450678]
[1750532201129,50.67724852,137.73,137.72,11.51561627]
[1750532201327,23.92724852,137.74,137.72,11.51561627]
[1750532201559,0.75,137.78,137.72,35.44286479]
[1750532201735,0.75,137.78,137.75,23.92724852]
[1750532201942,0.75,137.78,137.76,23.92724852]
[1750532202161,148.0,137.82,137.75,2.8362438]
[1750532202353,23.92724852,137.79,137.75,2.8362438]
[1750532202528,23.92724852,137.79,137.75,26.76349232]
[1750532202732,24.67724852,137.8,137.76,7.25900116]
[1750532202932,0.75,137.78,137.76,7.25900116]
[1750532203145,0.75,137.78,137.75,10.0957467]
[1750532203464,0.75,137.77,137.75,2.8362438]
[1750532203642,23.92724852,137.78,137.75,10.0957598]
[1750532203960,24.67724852,137.78,137.75,10.0957598]
[1750532204158,26.0,137.76,137.75,2.8362438]
[1750532204361,50.65724852,137.76,137.75,2.8362438]
[1750532204947,24.65724852,137.76,137.75,10.09577193]
[1750532205349,0.73,137.76,137.75,2.8362438]
[1750532205533,0.73,137.81,137.75,34.02302045]
[1750532205732,0.73,137.81,137.79,23.92724852]
[1750532205936,0.73,137.83,137.79,23.92724852]
[1750532206172,0.73,137.83,137.75,28.24459225]
[1750532206359,0.73,137.83,137.79,23.92724852]
[1750532206746,0.73,137.83,137.82,31.18308947]
[1750532206936,18.64964886,137.88,137.82,31.18308947]
[1750532206937,0.73,137.88,137.82,31.18308947]
[1750532207140,26.0,137.81,137.78,7.74]
[1750532207365,26.0,137.81,137.77,23.92724852]
[1750532207672,26.73,137.81,137.77,23.92724852]
[1750532207973,26.0,137.79,137.75,2.8362438]
[1750532208136,0.73,137.77,137.75,34.02300438]
[1750532208339,26.73,137.79,137.76,23.92724852]
[1750532208536,26.73,137.79,137.75,34.02300438]
[1750532208946,26.73,137.79,137.76,23.92724852]
[1750532209205,26.0,137.79,137.75,2.8362438]
[1750532209485,0.73,137.76,137.75,2.8362438]
[1750532209775,43.30689738,137.76,137.75,2.8362438]
[1750532209945,49.92724852,137.66,137.56,36.34777551]
[1750532210283,24.65724852,137.68,137.63,23.92724852]
[1750532210459,0.73,137.68,137.64,23.92724852]
[1750532210761,0.73,137.68,137.65,7.26480203]
[1750532211563,0.73,137.68,137.63,7.26585773]
[1750532211744,0.73,137.68,137.64,23.92724852]
[1750532212266,0.73,137.68,137.63,6.76585773]
[1750532212267,0.73,137.66,137.63,6.76585773]
[1750532212576,23.92724852,137.67,137.62,23.92724852]
[1750532212577,0.73,137.65,137.62,7.26624143]
[1750532212918,33.2630051,137.69,137.61,15.00687631]
[1750532212919,33.26279778,137.69,137.61,15.00687631]
[1750532213041,26.73,137.68,137.61,38.93412483]
[1750532213238,26.73,137.68,137.64,23.92724852]
[1750532213446,26.0,137.7,137.66,23.92724852]
[1750532213744,26.0,137.68,137.61,33.17416066]
[1750532213953,26.0,137.68,137.66,23.92724852]
[1750532214145,26.0,137.69,137.61,33.17416066]
[1750532214367,26.0,137.69,137.65,23.92724852]
[1750532214684,0.73,137.74,137.67,23.92724852]
[1750532214853,23.92724852,137.71,137.68,7.26321905]
[1750532215047,49.92724852,137.72,137.68,31.19046757]
[1750532215746,0.73,137.74,137.68,31.19046757]
[1750532215952,24.65724852,137.73,137.68,31.19046757]
[1750532216165,24.65724852,137.73,137.68,7.26321905]
[1750532216465,23.92724852,137.7,137.66,31.19152281]
[1750532216672,26.0,137.71,137.66,31.19152281]
[1750532216992,24.65724852,137.73,137.68,23.92724852]
[1750532217296,148.0,137.75,137.71,23.92724852]
[1750532217297,172.65724852,137.75,137.71,23.92724852]
[1750532217501,148.73,137.75,137.71,23.92724852]
[1750532217668,148.73,137.75,137.72,23.92724852]
[1750532218007,148.0,137.75,137.72,23.92724852]
[1750532218193,7.25753845,137.79,137.72,23.92724852]
[1750532218194,23.92724852,137.77,137.72,23.92724852]
[1750532218377,0.73,137.76,137.72,23.92724852]